[Event "Titled Tuesday Blitz May 23 Late 2023"]
[White "Gokerkan, Cem Kaan"]
[Black "Seletsky, Grigory"]
[WhiteFideId "6336760"]
[BlackFideId "14112191"]
[WhiteElo "2365"]
[BlackElo "2491"]
[Result "1-0"]
[Round "02"]
[TimeControl "180+2"]
[Date "2023.05.23"]
[WhiteClock "0:01:19"]
[BlackClock "0:00:50"]

1. e4 {[%clk 0:03:00]}  c5 {[%clk 0:02:56]} 2. Nf3 {[%clk 0:03:00]}  e6 {[%clk 0:02:55]} 3. c3 {[%clk 0:03:00]}  Nf6 {[%clk 0:02:49]} 4. e5 {[%clk 0:03:00]}  Nd5 {[%clk 0:02:49]} 5. d4 {[%clk 0:03:01]}  cxd4 {[%clk 0:02:48]} 6. cxd4 {[%clk 0:03:01]}  Nc6 {[%clk 0:02:48]} 7. Bc4 {[%clk 0:03:01]}  d6 {[%clk 0:02:46]} 8. O-O {[%clk 0:03:01]}  Be7 {[%clk 0:02:40]} 9. Qe2 {[%clk 0:02:58]}  Nb6 {[%clk 0:02:33]} 10. Bd3 {[%clk 0:02:56]}  d5 {[%clk 0:02:33]} 11. Nc3 {[%clk 0:02:54]}  Bd7 {[%clk 0:02:32]} 12. Be3 {[%clk 0:02:48]}  Rc8 {[%clk 0:02:27]} 13. Nd2 {[%clk 0:02:48]}  Na5 {[%clk 0:02:19]} 14. Qg4 {[%clk 0:02:47]}  g6 {[%clk 0:02:19]} 15. Bh6 {[%clk 0:02:37]}  Nac4 {[%clk 0:02:16]} 16. Nxc4 {[%clk 0:02:30]}  Nxc4 {[%clk 0:02:12]} 17. Nd1 {[%clk 0:02:21]}  Bb5 {[%clk 0:01:50]} 18. Re1 {[%clk 0:02:21]}  Nxe5 {[%clk 0:01:45]} 19. Bxb5+ {[%clk 0:02:21]}  Nc6 {[%clk 0:01:41]} 20. Nc3 {[%clk 0:02:05]}  a6 {[%clk 0:01:37]} 21. Ba4 {[%clk 0:02:05]}  Bf6 {[%clk 0:01:33]} 22. Rad1 {[%clk 0:02:02]}  b6 {[%clk 0:01:32]} 23. Rxe6+ {[%clk 0:01:52]}  fxe6 {[%clk 0:01:30]} 24. Qxe6+ {[%clk 0:01:52]}  Be7 {[%clk 0:01:24]} 25. Bxc6+ {[%clk 0:01:51]}  Rxc6 {[%clk 0:01:25]} 26. Qxc6+ {[%clk 0:01:52]}  Qd7 {[%clk 0:01:24]} 27. Qxb6 {[%clk 0:01:38]}  Kf7 {[%clk 0:01:21]} 28. Qxa6 {[%clk 0:01:38]}  Rb8 {[%clk 0:01:20]} 29. Qe2 {[%clk 0:01:36]}  Bf6 {[%clk 0:01:18]} 30. Bf4 {[%clk 0:01:35]}  Rb4 {[%clk 0:01:14]} 31. Be5 {[%clk 0:01:35]}  Qe6 {[%clk 0:01:11]} 32. Bxf6 {[%clk 0:01:33]}  Qxe2 {[%clk 0:01:09]} 33. Nxe2 {[%clk 0:01:34]}  Rxb2 {[%clk 0:01:10]} 34. Nc3 {[%clk 0:01:27]}  Kxf6 {[%clk 0:01:07]} 35. Nxd5+ {[%clk 0:01:27]}  Kf5 {[%clk 0:01:05]} 36. Ne3+ {[%clk 0:01:23]}  Ke6 {[%clk 0:01:05]} 37. d5+ {[%clk 0:01:24]}  Kd7 {[%clk 0:01:06]} 38. d6 {[%clk 0:01:24]}  Rxa2 {[%clk 0:01:06]} 39. h3 {[%clk 0:01:24]}  h5 {[%clk 0:01:03]} 40. Nc4 {[%clk 0:01:22]}  Re2 {[%clk 0:01:02]} 41. f4 {[%clk 0:01:19]}  Re4 {[%clk 0:00:59]} 42. Ne5+ {[%clk 0:01:19]}  Kd8 {[%clk 0:00:57]} 43. d7 {[%clk 0:01:19]}  Rxf4 {[%clk 0:00:50]} 44. Nc6+ {[%clk 0:01:19]} 1-0


[Site "https://www.chess.com"]

[Event "Titled Tuesday Blitz May 23 Late 2023"]
[White "Vovk, Orest"]
[Black "Tatarinov, Dmitry"]
[WhiteFideId "14113490"]
[BlackFideId "24160067"]
[WhiteElo "2215"]
[BlackElo "2326"]
[Result "0-1"]
[Round "02"]
[TimeControl "180+2"]
[Date "2023.05.23"]
[WhiteClock "0:00:01"]
[BlackClock "0:01:24"]

1. h4 {[%clk 0:03:00]}  e5 {[%clk 0:02:58]} 2. h5 {[%clk 0:03:00]}  h6 {[%clk 0:02:59]} 3. d4 {[%clk 0:02:59]}  exd4 {[%clk 0:02:59]} 4. Qxd4 {[%clk 0:03:00]}  Nf6 {[%clk 0:02:59]} 5. g4 {[%clk 0:02:58]}  Nc6 {[%clk 0:02:58]} 6. Qa4 {[%clk 0:02:58]}  d5 {[%clk 0:02:55]} 7. g5 {[%clk 0:02:57]}  hxg5 {[%clk 0:02:55]} 8. Bxg5 {[%clk 0:02:55]}  Qd6 {[%clk 0:02:55]} 9. Bxf6 {[%clk 0:02:48]}  Qxf6 {[%clk 0:02:54]} 10. Nc3 {[%clk 0:02:48]}  Bb4 {[%clk 0:02:55]} 11. O-O-O {[%clk 0:02:21]}  Bxc3 {[%clk 0:02:54]} 12. bxc3 {[%clk 0:02:22]}  Qxc3 {[%clk 0:02:53]} 13. Kb1 {[%clk 0:02:13]}  Be6 {[%clk 0:02:48]} 14. Bh3 {[%clk 0:02:03]}  O-O-O {[%clk 0:02:44]} 15. Bxe6+ {[%clk 0:02:02]}  fxe6 {[%clk 0:02:45]} 16. Rh3 {[%clk 0:01:59]}  Qc5 {[%clk 0:02:38]} 17. e3 {[%clk 0:01:46]}  Ne5 {[%clk 0:02:37]} 18. Nf3 {[%clk 0:01:38]}  Nc4 {[%clk 0:02:36]} 19. Nd2 {[%clk 0:01:32]}  Nxd2+ {[%clk 0:02:31]} 20. Rxd2 {[%clk 0:01:32]}  Rd6 {[%clk 0:02:32]} 21. Rd3 {[%clk 0:01:25]}  Rb6+ {[%clk 0:02:24]} 22. Rb3 {[%clk 0:01:22]}  Kb8 {[%clk 0:02:24]} 23. h6 {[%clk 0:01:10]}  gxh6 {[%clk 0:02:19]} 24. Rxh6 {[%clk 0:01:09]}  Rf8 {[%clk 0:02:19]} 25. Rf6 {[%clk 0:01:05]}  a6 {[%clk 0:02:19]} 26. Rxf8+ {[%clk 0:01:02]}  Qxf8 {[%clk 0:02:19]} 27. Rxb6 {[%clk 0:00:59]}  cxb6 {[%clk 0:02:19]} 28. Qd7 {[%clk 0:00:59]}  Qb4+ {[%clk 0:02:15]} 29. Kc1 {[%clk 0:00:58]}  Qe4 {[%clk 0:02:07]} 30. Kb1 {[%clk 0:00:54]}  Ka7 {[%clk 0:02:06]} 31. Qd6 {[%clk 0:00:52]}  e5 {[%clk 0:02:05]} 32. Qe7 {[%clk 0:00:47]}  d4 {[%clk 0:02:03]} 33. exd4 {[%clk 0:00:45]}  Qxd4 {[%clk 0:02:02]} 34. Qf6 {[%clk 0:00:45]}  a5 {[%clk 0:02:00]} 35. Qf3 {[%clk 0:00:44]}  b5 {[%clk 0:01:53]} 36. Qe2 {[%clk 0:00:29]}  b4 {[%clk 0:01:53]} 37. Qb5 {[%clk 0:00:24]}  b6 {[%clk 0:01:48]} 38. f3 {[%clk 0:00:20]}  Qd1+ {[%clk 0:01:43]} 39. Kb2 {[%clk 0:00:20]}  Qd6 {[%clk 0:01:40]} 40. Kb1 {[%clk 0:00:17]}  Qc5 {[%clk 0:01:37]} 41. Qd7+ {[%clk 0:00:17]}  Ka6 {[%clk 0:01:37]} 42. Qd3+ {[%clk 0:00:17]}  Kb7 {[%clk 0:01:35]} 43. Qe4+ {[%clk 0:00:16]}  Kc7 {[%clk 0:01:34]} 44. Qh7+ {[%clk 0:00:14]}  Kc6 {[%clk 0:01:35]} 45. Qg6+ {[%clk 0:00:13]}  Qd6 {[%clk 0:01:33]} 46. Qe4+ {[%clk 0:00:12]}  Qd5 {[%clk 0:01:34]} 47. Qg6+ {[%clk 0:00:12]}  Kc5 {[%clk 0:01:34]} 48. Qf5 {[%clk 0:00:11]}  a4 {[%clk 0:01:33]} 49. Qf8+ {[%clk 0:00:11]}  Kc4 {[%clk 0:01:32]} 50. Qc8+ {[%clk 0:00:10]}  Kd4 {[%clk 0:01:33]} 51. Qg4+ {[%clk 0:00:09]}  Ke3 {[%clk 0:01:32]} 52. Qg1+ {[%clk 0:00:07]}  Kd2 {[%clk 0:01:24]} 53. Qf2+ {[%clk 0:00:06]}  Kc3 {[%clk 0:01:24]} 54. Qe1+ {[%clk 0:00:06]}  Kc4 {[%clk 0:01:24]} 55. Qe2+ {[%clk 0:00:06]}  Kc5 {[%clk 0:01:24]} 56. Qe3+ {[%clk 0:00:06]}  Qd4 {[%clk 0:01:25]} 57. Qe1 {[%clk 0:00:04]}  a3 {[%clk 0:01:25]} 58. Qc1 {[%clk 0:00:04]}  Qc3 {[%clk 0:01:25]} 59. Qg1+ {[%clk 0:00:04]}  Qd4 {[%clk 0:01:23]} 60. Qc1 {[%clk 0:00:03]}  Kd5 {[%clk 0:01:23]} 61. c4+ {[%clk 0:00:01]}  Kc5 {[%clk 0:01:22]} 62. Qc2 {[%clk 0:00:01]}  Qg1+ {[%clk 0:01:21]} 63. Qc1 {[%clk 0:00:01]}  Qxc1+ {[%clk 0:01:21]} 64. Kxc1 {[%clk 0:00:02]}  Kxc4 {[%clk 0:01:22]} 65. Kc2 {[%clk 0:00:03]}  b3+ {[%clk 0:01:22]} 66. axb3+ {[%clk 0:00:02]}  Kb4 {[%clk 0:01:22]} 67. Kb1 {[%clk 0:00:02]}  Kxb3 {[%clk 0:01:22]} 68. Ka1 {[%clk 0:00:03]}  Kc3 {[%clk 0:01:22]} 69. Ka2 {[%clk 0:00:02]}  Kd3 {[%clk 0:01:23]} 70. Kxa3 {[%clk 0:00:03]}  Ke3 {[%clk 0:01:23]} 71. Kb4 {[%clk 0:00:01]}  Kxf3 {[%clk 0:01:24]} 0-1


[Site "https://www.chess.com"]

[Event "Titled Tuesday Blitz May 23 Late 2023"]
[White "Gheorghiu, Calin"]
[Black "Lacasa Diaz, Jose Antonio"]
[WhiteFideId "1200305"]
[BlackFideId "2203375"]
[WhiteElo "2223"]
[BlackElo "2338"]
[Result "1/2-1/2"]
[Round "02"]
[TimeControl "180+2"]
[Date "2023.05.23"]
[WhiteClock "0:00:02"]
[BlackClock "0:00:02"]

1. e4 {[%clk 0:03:00]}  c5 {[%clk 0:02:57]} 2. Nf3 {[%clk 0:03:00]}  e6 {[%clk 0:02:58]} 3. c3 {[%clk 0:02:59]}  d5 {[%clk 0:02:57]} 4. exd5 {[%clk 0:02:58]}  Qxd5 {[%clk 0:02:57]} 5. d4 {[%clk 0:02:58]}  Nf6 {[%clk 0:02:57]} 6. Be2 {[%clk 0:02:57]}  cxd4 {[%clk 0:02:57]} 7. cxd4 {[%clk 0:02:56]}  Nc6 {[%clk 0:02:58]} 8. Nc3 {[%clk 0:02:56]}  Qd6 {[%clk 0:02:58]} 9. O-O {[%clk 0:02:55]}  Be7 {[%clk 0:02:58]} 10. Bg5 {[%clk 0:02:54]}  O-O {[%clk 0:02:58]} 11. Rc1 {[%clk 0:02:54]}  b6 {[%clk 0:02:58]} 12. Bd3 {[%clk 0:02:49]}  Bb7 {[%clk 0:02:56]} 13. Bb1 {[%clk 0:02:50]}  Rfd8 {[%clk 0:02:52]} 14. Qc2 {[%clk 0:02:25]}  g6 {[%clk 0:02:52]} 15. Rfd1 {[%clk 0:02:23]}  Nb4 {[%clk 0:02:49]} 16. Qe2 {[%clk 0:02:22]}  Nbd5 {[%clk 0:02:46]} 17. Nb5 {[%clk 0:02:06]}  Qb8 {[%clk 0:02:41]} 18. Ne5 {[%clk 0:01:57]}  a6 {[%clk 0:02:30]} 19. Nc3 {[%clk 0:01:56]}  Nxc3 {[%clk 0:02:22]} 20. bxc3 {[%clk 0:01:47]}  Qd6 {[%clk 0:02:11]} 21. c4 {[%clk 0:01:44]}  Rac8 {[%clk 0:01:59]} 22. Rc3 {[%clk 0:01:42]}  Nh5 {[%clk 0:01:50]} 23. Bxe7 {[%clk 0:01:28]}  Qxe7 {[%clk 0:01:50]} 24. Qg4 {[%clk 0:01:26]}  Nf6 {[%clk 0:01:23]} 25. Qh4 {[%clk 0:01:25]}  Nd5 {[%clk 0:01:18]} 26. Qxe7 {[%clk 0:01:19]}  Nxe7 {[%clk 0:01:19]} 27. Rb3 {[%clk 0:01:16]}  Rd6 {[%clk 0:01:17]} 28. c5 {[%clk 0:01:14]}  Rxc5 {[%clk 0:01:15]} 29. Nd3 {[%clk 0:01:00]}  Rcd5 {[%clk 0:01:09]} 30. Nb2 {[%clk 0:00:50]}  b5 {[%clk 0:01:06]} 31. Be4 {[%clk 0:00:48]}  Rc6 {[%clk 0:00:47]} 32. Bxd5 {[%clk 0:00:47]}  Nxd5 {[%clk 0:00:48]} 33. Nd3 {[%clk 0:00:46]}  Rc2 {[%clk 0:00:46]} 34. Nc5 {[%clk 0:00:45]}  Bc6 {[%clk 0:00:42]} 35. Ra3 {[%clk 0:00:42]}  Nb4 {[%clk 0:00:35]} 36. Nxa6 {[%clk 0:00:39]}  Nxa2 {[%clk 0:00:30]} 37. Ra1 {[%clk 0:00:28]}  Bd5 {[%clk 0:00:26]} 38. f3 {[%clk 0:00:20]}  b4 {[%clk 0:00:26]} 39. R3xa2 {[%clk 0:00:17]}  Rxa2 {[%clk 0:00:20]} 40. Rxa2 {[%clk 0:00:17]}  Bxa2 {[%clk 0:00:20]} 41. Nxb4 {[%clk 0:00:17]}  Bc4 {[%clk 0:00:21]} 42. Kf2 {[%clk 0:00:17]}  Kf8 {[%clk 0:00:22]} 43. Ke3 {[%clk 0:00:18]}  Ke7 {[%clk 0:00:22]} 44. Nd3 {[%clk 0:00:16]}  f6 {[%clk 0:00:20]} 45. h4 {[%clk 0:00:14]}  h6 {[%clk 0:00:18]} 46. Nc5 {[%clk 0:00:14]}  Bd5 {[%clk 0:00:15]} 47. Ne4 {[%clk 0:00:14]}  f5 {[%clk 0:00:14]} 48. Ng3 {[%clk 0:00:13]}  g5 {[%clk 0:00:14]} 49. hxg5 {[%clk 0:00:14]}  hxg5 {[%clk 0:00:14]} 50. Ne2 {[%clk 0:00:14]}  f4+ {[%clk 0:00:11]} 51. Kd3 {[%clk 0:00:14]}  Kf6 {[%clk 0:00:11]} 52. Nc3 {[%clk 0:00:14]}  Bb7 {[%clk 0:00:10]} 53. Ne4+ {[%clk 0:00:14]}  Kg6 {[%clk 0:00:09]} 54. Kc4 {[%clk 0:00:10]}  Ba6+ {[%clk 0:00:08]} 55. Kc5 {[%clk 0:00:09]}  Bf1 {[%clk 0:00:08]} 56. Kd6 {[%clk 0:00:09]}  Bxg2 {[%clk 0:00:08]} 57. Kxe6 {[%clk 0:00:09]}  Bxf3 {[%clk 0:00:08]} 58. Nd2 {[%clk 0:00:06]}  Ba8 {[%clk 0:00:03]} 59. d5 {[%clk 0:00:05]}  g4 {[%clk 0:00:03]} 60. d6 {[%clk 0:00:05]}  Bc6 {[%clk 0:00:03]} 61. Ke5 {[%clk 0:00:04]}  f3 {[%clk 0:00:03]} 62. Kf4 {[%clk 0:00:03]}  Kh5 {[%clk 0:00:03]} 63. d7 {[%clk 0:00:03]}  Bxd7 {[%clk 0:00:03]} 64. Nxf3 {[%clk 0:00:03]}  Be6 {[%clk 0:00:02]} 65. Nh2 {[%clk 0:00:03]}  Kh4 {[%clk 0:00:02]} 66. Nxg4 {[%clk 0:00:02]} 1/2-1/2


[Site "https://www.chess.com"]

[Event "Titled Tuesday Blitz May 23 Late 2023"]
[White "Dardha, Daniel"]
[Black "Qiao, Cindy"]
[WhiteFideId "240990"]
[BlackFideId "2620243"]
[WhiteElo "2581"]
[BlackElo "1777"]
[Result "1-0"]
[Round "02"]
[TimeControl "180+2"]
[Date "2023.05.23"]
[WhiteClock "0:00:41"]
[BlackClock "0:00:14"]

1. g4 {[%clk 0:03:00]}  d5 {[%clk 0:03:00]} 2. Bh3 {[%clk 0:02:59]}  Nc6 {[%clk 0:02:58]} 3. d4 {[%clk 0:02:56]}  Nf6 {[%clk 0:02:56]} 4. g5 {[%clk 0:02:54]}  Ne4 {[%clk 0:02:56]} 5. f3 {[%clk 0:02:50]}  Nd6 {[%clk 0:02:51]} 6. Nc3 {[%clk 0:02:48]}  e6 {[%clk 0:02:45]} 7. e4 {[%clk 0:02:48]}  Nc4 {[%clk 0:02:33]} 8. Nge2 {[%clk 0:02:42]}  Be7 {[%clk 0:02:28]} 9. Rg1 {[%clk 0:02:39]}  a6 {[%clk 0:02:15]} 10. b3 {[%clk 0:02:37]}  Nb6 {[%clk 0:02:11]} 11. Be3 {[%clk 0:02:36]}  e5 {[%clk 0:01:51]} 12. Bxc8 {[%clk 0:02:33]}  Rxc8 {[%clk 0:01:51]} 13. dxe5 {[%clk 0:02:09]}  Nxe5 {[%clk 0:01:51]} 14. Rg3 {[%clk 0:02:07]}  dxe4 {[%clk 0:01:36]} 15. Nxe4 {[%clk 0:02:03]}  O-O {[%clk 0:01:29]} 16. f4 {[%clk 0:01:56]}  Nc6 {[%clk 0:01:21]} 17. f5 {[%clk 0:01:49]}  f6 {[%clk 0:01:01]} 18. g6 {[%clk 0:01:35]}  Qxd1+ {[%clk 0:00:51]} 19. Rxd1 {[%clk 0:01:35]}  h6 {[%clk 0:00:43]} 20. Nf4 {[%clk 0:01:33]}  Bb4+ {[%clk 0:00:39]} 21. c3 {[%clk 0:01:27]}  Rfe8 {[%clk 0:00:29]} 22. Ne6 {[%clk 0:01:26]}  Bf8 {[%clk 0:00:27]} 23. Kf2 {[%clk 0:01:06]}  Ne7 {[%clk 0:00:28]} 24. Nxf8 {[%clk 0:00:57]}  Rxf8 {[%clk 0:00:26]} 25. Rf3 {[%clk 0:00:56]}  Rfd8 {[%clk 0:00:25]} 26. Re1 {[%clk 0:00:56]}  Ned5 {[%clk 0:00:24]} 27. Bc5 {[%clk 0:00:53]}  Re8 {[%clk 0:00:22]} 28. c4 {[%clk 0:00:51]}  Ne7 {[%clk 0:00:18]} 29. Bxe7 {[%clk 0:00:41]}  Rxe7 {[%clk 0:00:18]} 30. Nxf6+ {[%clk 0:00:42]}  gxf6 {[%clk 0:00:17]} 31. Rxe7 {[%clk 0:00:41]}  Rd8 {[%clk 0:00:13]} 32. Rfe3 {[%clk 0:00:39]}  Nd7 {[%clk 0:00:11]} 33. Re8+ {[%clk 0:00:38]}  Rxe8 {[%clk 0:00:11]} 34. Rxe8+ {[%clk 0:00:39]}  Nf8 {[%clk 0:00:12]} 35. Rxf8+ {[%clk 0:00:39]}  Kxf8 {[%clk 0:00:12]} 36. h3 {[%clk 0:00:40]}  Kg7 {[%clk 0:00:13]} 37. Ke2 {[%clk 0:00:40]}  h5 {[%clk 0:00:13]} 38. Kd2 {[%clk 0:00:41]}  h4 {[%clk 0:00:14]} 39. Ke2 {[%clk 0:00:41]} 1-0


[Site "https://www.chess.com"]

[Event "Titled Tuesday Blitz May 23 Late 2023"]
[White "Ziatdinov, Raset"]
[Black "Mekhitarian, Krikor Sevag"]
[WhiteFideId "2015323"]
[BlackFideId "2107660"]
[WhiteElo "2220"]
[BlackElo "2604"]
[Result "0-1"]
[Round "02"]
[TimeControl "180+2"]
[Date "2023.05.23"]
[WhiteClock "0:00:53"]
[BlackClock "0:01:48"]

1. e4 {[%clk 0:02:40]}  e6 {[%clk 0:02:59]} 2. d4 {[%clk 0:02:40]}  d5 {[%clk 0:03:00]} 3. Nc3 {[%clk 0:02:40]}  Nf6 {[%clk 0:03:00]} 4. e5 {[%clk 0:02:39]}  Nfd7 {[%clk 0:03:00]} 5. f4 {[%clk 0:02:39]}  c5 {[%clk 0:03:00]} 6. Nf3 {[%clk 0:02:40]}  Nc6 {[%clk 0:03:01]} 7. Be3 {[%clk 0:02:40]}  cxd4 {[%clk 0:03:01]} 8. Nxd4 {[%clk 0:02:40]}  Qb6 {[%clk 0:03:02]} 9. Qd2 {[%clk 0:02:33]}  Qxb2 {[%clk 0:02:57]} 10. Rb1 {[%clk 0:02:33]}  Qa3 {[%clk 0:02:58]} 11. Bb5 {[%clk 0:02:24]}  Nxd4 {[%clk 0:02:55]} 12. Bxd4 {[%clk 0:02:25]}  a6 {[%clk 0:02:55]} 13. Bxd7+ {[%clk 0:02:20]}  Bxd7 {[%clk 0:02:56]} 14. Rb3 {[%clk 0:02:20]}  Qe7 {[%clk 0:02:55]} 15. Rxb7 {[%clk 0:02:19]}  Qh4+ {[%clk 0:02:55]} 16. Bf2 {[%clk 0:01:42]}  Qd8 {[%clk 0:02:55]} 17. Bb6 {[%clk 0:01:41]}  Qc8 {[%clk 0:02:52]} 18. Rc7 {[%clk 0:01:40]}  Qb8 {[%clk 0:02:47]} 19. Qd4 {[%clk 0:01:37]}  Be7 {[%clk 0:02:42]} 20. O-O {[%clk 0:01:34]}  Bd8 {[%clk 0:02:16]} 21. Qc5 {[%clk 0:01:25]}  Bxc7 {[%clk 0:02:11]} 22. Bxc7 {[%clk 0:01:24]}  Qb7 {[%clk 0:02:03]} 23. Rb1 {[%clk 0:01:08]}  Qc6 {[%clk 0:02:02]} 24. Qa5 {[%clk 0:01:09]}  O-O {[%clk 0:01:56]} 25. Bd6 {[%clk 0:01:09]}  Rfc8 {[%clk 0:01:51]} 26. Rb3 {[%clk 0:00:53]}  d4 {[%clk 0:01:48]} 0-1


[Site "https://www.chess.com"]

[Event "Titled Tuesday Blitz May 23 Late 2023"]
[White "Sattarov, Bobir"]
[Black "Dzierzak, Radoslaw"]
[WhiteFideId "14203081"]
[BlackFideId "1161407"]
[WhiteElo "2351"]
[BlackElo "2166"]
[Result "1/2-1/2"]
[Round "02"]
[TimeControl "180+2"]
[Date "2023.05.23"]
[WhiteClock "0:01:23"]
[BlackClock "0:00:04"]

1. e4 {[%clk 0:03:00]}  c6 {[%clk 0:02:59]} 2. Nc3 {[%clk 0:02:51]}  d5 {[%clk 0:02:59]} 3. Nf3 {[%clk 0:02:51]}  Bg4 {[%clk 0:02:59]} 4. h3 {[%clk 0:02:52]}  Bxf3 {[%clk 0:02:59]} 5. gxf3 {[%clk 0:02:50]}  e6 {[%clk 0:02:56]} 6. d4 {[%clk 0:02:51]}  g6 {[%clk 0:02:50]} 7. Qd3 {[%clk 0:02:50]}  Bg7 {[%clk 0:02:49]} 8. Be3 {[%clk 0:02:51]}  Ne7 {[%clk 0:02:47]} 9. h4 {[%clk 0:02:50]}  h5 {[%clk 0:02:47]} 10. O-O-O {[%clk 0:02:51]}  Nd7 {[%clk 0:02:45]} 11. Kb1 {[%clk 0:02:51]}  Qa5 {[%clk 0:02:30]} 12. Bd2 {[%clk 0:02:41]}  Qb6 {[%clk 0:02:28]} 13. Ne2 {[%clk 0:02:41]}  c5 {[%clk 0:02:22]} 14. exd5 {[%clk 0:02:33]}  Nxd5 {[%clk 0:02:21]} 15. c4 {[%clk 0:02:33]}  Ne7 {[%clk 0:02:18]} 16. Bc3 {[%clk 0:02:32]}  cxd4 {[%clk 0:02:12]} 17. Nxd4 {[%clk 0:02:24]}  Nc5 {[%clk 0:02:11]} 18. Qc2 {[%clk 0:02:20]}  O-O {[%clk 0:02:10]} 19. Be2 {[%clk 0:02:17]}  Rfd8 {[%clk 0:02:06]} 20. Rhg1 {[%clk 0:02:14]}  Nf5 {[%clk 0:01:35]} 21. Nxf5 {[%clk 0:02:12]}  exf5 {[%clk 0:01:35]} 22. Bxg7 {[%clk 0:02:11]}  Kxg7 {[%clk 0:01:36]} 23. Qxf5 {[%clk 0:02:06]}  Rxd1+ {[%clk 0:01:35]} 24. Bxd1 {[%clk 0:02:07]}  Rd8 {[%clk 0:01:21]} 25. Bc2 {[%clk 0:02:07]}  Re8 {[%clk 0:01:02]} 26. Qd5 {[%clk 0:01:55]}  Re2 {[%clk 0:00:39]} 27. Qd4+ {[%clk 0:01:53]}  Kh7 {[%clk 0:00:33]} 28. a3 {[%clk 0:01:52]}  Na4 {[%clk 0:00:29]} 29. c5 {[%clk 0:01:40]}  Nxc5 {[%clk 0:00:20]} 30. Rg5 {[%clk 0:01:36]}  Re1+ {[%clk 0:00:11]} 31. Bd1 {[%clk 0:01:35]}  Kg8 {[%clk 0:00:05]} 32. Rxc5 {[%clk 0:01:29]}  Rxd1+ {[%clk 0:00:05]} 33. Qxd1 {[%clk 0:01:29]}  Qxc5 {[%clk 0:00:05]} 34. Qd8+ {[%clk 0:01:30]}  Kg7 {[%clk 0:00:05]} 35. Qd2 {[%clk 0:01:29]}  Qf5+ {[%clk 0:00:04]} 36. Ka1 {[%clk 0:01:26]}  Qxf3 {[%clk 0:00:04]} 37. Qd4+ {[%clk 0:01:26]}  Kh7 {[%clk 0:00:03]} 38. Qxa7 {[%clk 0:01:27]}  Qd1+ {[%clk 0:00:03]} 39. Ka2 {[%clk 0:01:26]}  Qd5+ {[%clk 0:00:03]} 40. Kb1 {[%clk 0:01:24]}  Qd1+ {[%clk 0:00:04]} 41. Ka2 {[%clk 0:01:24]}  Qd5+ {[%clk 0:00:04]} 42. Ka1 {[%clk 0:01:23]}  Qd1+ {[%clk 0:00:04]} 43. Ka2 {[%clk 0:01:23]} 1/2-1/2


[Site "https://www.chess.com"]

[Event "Titled Tuesday Blitz May 23 Late 2023"]
[White "Vadim_Galchenko"]
[Black "Cruz, Jonathan"]
[BlackFideId "3802124"]
[WhiteElo "2380"]
[BlackElo "2407"]
[Result "1-0"]
[Round "02"]
[TimeControl "180+2"]
[Date "2023.05.23"]
[WhiteClock "0:00:17"]
[BlackClock "0:00:00"]

1. e4 {[%clk 0:03:00]}  e5 {[%clk 0:02:59]} 2. Nc3 {[%clk 0:03:00]}  Nf6 {[%clk 0:02:59]} 3. Bc4 {[%clk 0:03:01]}  Bc5 {[%clk 0:02:48]} 4. f4 {[%clk 0:03:00]}  d6 {[%clk 0:02:47]} 5. d3 {[%clk 0:02:59]}  Bg4 {[%clk 0:02:46]} 6. Nf3 {[%clk 0:02:57]}  Nc6 {[%clk 0:02:46]} 7. Na4 {[%clk 0:02:56]}  exf4 {[%clk 0:02:24]} 8. Nxc5 {[%clk 0:02:50]}  dxc5 {[%clk 0:02:23]} 9. Bxf4 {[%clk 0:02:51]}  Qe7 {[%clk 0:02:11]} 10. h3 {[%clk 0:02:47]}  Bh5 {[%clk 0:02:10]} 11. g4 {[%clk 0:02:46]}  Bg6 {[%clk 0:02:10]} 12. Qd2 {[%clk 0:02:43]}  O-O-O {[%clk 0:02:09]} 13. Qe3 {[%clk 0:02:40]}  Na5 {[%clk 0:01:49]} 14. Bb3 {[%clk 0:02:38]}  c4 {[%clk 0:01:44]} 15. Qxa7 {[%clk 0:02:29]}  Nc6 {[%clk 0:01:38]} 16. Qa8+ {[%clk 0:02:16]}  Kd7 {[%clk 0:01:38]} 17. Qa4 {[%clk 0:02:10]}  cxb3 {[%clk 0:01:33]} 18. Ne5+ {[%clk 0:02:10]}  Ke8 {[%clk 0:01:16]} 19. Nxc6 {[%clk 0:02:09]}  bxc6 {[%clk 0:01:16]} 20. Qxc6+ {[%clk 0:02:08]}  Nd7 {[%clk 0:01:10]} 21. axb3 {[%clk 0:02:07]}  Qb4+ {[%clk 0:00:59]} 22. Kf1 {[%clk 0:01:58]}  Qc5 {[%clk 0:00:51]} 23. Qxc5 {[%clk 0:01:26]}  Nxc5 {[%clk 0:00:52]} 24. Bxc7 {[%clk 0:01:18]}  Rc8 {[%clk 0:00:52]} 25. Bg3 {[%clk 0:01:09]}  h5 {[%clk 0:00:52]} 26. g5 {[%clk 0:01:09]}  Ne6 {[%clk 0:00:51]} 27. Rh2 {[%clk 0:01:07]}  Nxg5 {[%clk 0:00:50]} 28. Ra7 {[%clk 0:01:03]}  Nf3 {[%clk 0:00:38]} 29. Rf2 {[%clk 0:00:55]}  Nd4 {[%clk 0:00:35]} 30. c3 {[%clk 0:00:40]}  Nxb3 {[%clk 0:00:24]} 31. d4 {[%clk 0:00:31]}  Bxe4 {[%clk 0:00:17]} 32. Rfxf7 {[%clk 0:00:30]}  Nd2+ {[%clk 0:00:09]} 33. Ke2 {[%clk 0:00:29]}  Nc4 {[%clk 0:00:08]} 34. Rfe7+ {[%clk 0:00:24]}  Kf8 {[%clk 0:00:08]} 35. Rxe4 {[%clk 0:00:24]}  Nxb2 {[%clk 0:00:09]} 36. Bd6+ {[%clk 0:00:21]}  Kg8 {[%clk 0:00:09]} 37. Ree7 {[%clk 0:00:21]}  Rh7 {[%clk 0:00:08]} 38. Bb4 {[%clk 0:00:18]}  h4 {[%clk 0:00:05]} 39. d5 {[%clk 0:00:18]}  Nc4 {[%clk 0:00:02]} 40. d6 {[%clk 0:00:18]}  Rd8 {[%clk 0:00:01]} 41. d7 {[%clk 0:00:17]}  Rh5 {[%clk 0:00:01]} 42. Re8+ {[%clk 0:00:17]}  Kf7 {[%clk 0:00:01]} 43. Rxd8 {[%clk 0:00:17]}  Re5+ {[%clk 0:00:01]} 44. Kd3 {[%clk 0:00:18]}  Nb6 {[%clk 0:00:01]} 45. Re8 {[%clk 0:00:17]}  Rxe8 {[%clk 0:00:01]} 46. dxe8=Q+ {[%clk 0:00:17]}  Kxe8 {[%clk 0:00:00]} 47. Rxg7 {[%clk 0:00:17]} 1-0


[Site "https://www.chess.com"]

[Event "Titled Tuesday Blitz May 23 Late 2023"]
[White "Zemlyanskii, Ivan"]
[Black "FromTexas54"]
[WhiteFideId "24249971"]
[WhiteElo "2421"]
[BlackElo "2371"]
[Result "1-0"]
[Round "02"]
[TimeControl "180+2"]
[Date "2023.05.23"]
[WhiteClock "0:01:53"]
[BlackClock "0:01:41"]

1. d4 {[%clk 0:03:00]}  Nf6 {[%clk 0:02:59]} 2. c4 {[%clk 0:03:00]}  g6 {[%clk 0:02:59]} 3. h4 {[%clk 0:03:00]}  c5 {[%clk 0:02:52]} 4. d5 {[%clk 0:02:59]}  d6 {[%clk 0:02:50]} 5. Nc3 {[%clk 0:02:58]}  a6 {[%clk 0:02:49]} 6. e4 {[%clk 0:02:45]}  b5 {[%clk 0:02:48]} 7. cxb5 {[%clk 0:02:45]}  Bg7 {[%clk 0:02:48]} 8. Nf3 {[%clk 0:02:40]}  O-O {[%clk 0:02:25]} 9. a4 {[%clk 0:02:39]}  Bg4 {[%clk 0:02:21]} 10. Be3 {[%clk 0:02:26]}  Qa5 {[%clk 0:02:15]} 11. Bd2 {[%clk 0:02:02]}  Qb4 {[%clk 0:02:08]} 12. Qc2 {[%clk 0:02:02]}  Bxf3 {[%clk 0:01:57]} 13. gxf3 {[%clk 0:02:02]}  Nh5 {[%clk 0:01:55]} 14. Nd1 {[%clk 0:01:53]}  Qd4 {[%clk 0:01:41]} 15. Bc3 {[%clk 0:01:53]} 1-0


[Site "https://www.chess.com"]